fUSD/lending_fUSD_20250606
["ID","MTS","AMOUNT","RATE_DAILY","PERIOD"]
[364820458,1749253850434,-220.203666,0.0002755,7]
[364820459,1749253850444,-151.0,0.0002755,7]
[364820460,1749253850454,-151.0,0.0002755,7]
[364820461,1749253850463,-272.866602,0.0002755,7]
[364820462,1749253850473,-160.712007,0.0002755,7]
[364820463,1749253850482,-160.712007,0.0002755,7]
[364820464,1749253850492,-151.0,0.0002755,7]
[364820465,1749253850501,-151.0,0.00027552,7]
[364820466,1749253850511,-151.0,0.00027552,7]
[364820467,1749253850521,-151.0,0.00027552,7]
[364820468,1749253850531,-151.0,0.00027552,7]
[364820469,1749253850540,-151.0,0.00027552,7]
[364820470,1749253850549,-151.0,0.00027552,7]
[364820471,1749253850559,-151.0,0.00027552,7]
[364820472,1749253850569,-151.0,0.00027552,7]
[364820473,1749253850578,-439.841746,0.00027553,7]
[364820474,1749253850587,-439.841746,0.00027553,7]
[364820475,1749253850597,-181.337287,0.00027554,7]
[364820476,1749253850607,-181.337287,0.00027554,7]
[364820477,1749253850616,-151.0,0.00027554,7]
[364820478,1749253850627,-151.0,0.00027554,7]
[364820479,1749253850636,-151.0,0.00027554,7]
[364820480,1749253850645,-151.0,0.00027554,7]
[364820481,1749253850656,-151.0,0.00027554,7]
[364820482,1749253850673,-151.0,0.00027554,7]
[364820483,1749253850684,-152.175553,0.00027554,7]
[364820484,1749253850693,-1224.121381,0.00027554,7]
[364820485,1749253850703,-1224.121381,0.00027554,7]
[364820486,1749253850712,-151.0,0.00027554,7]
[364820487,1749253850722,-151.0,0.00027554,7]
[364820488,1749253850731,-151.0,0.00027554,7]
[364820489,1749253850741,-151.0,0.00027554,7]
[364820490,1749253850751,-151.0,0.00027554,7]
[364820491,1749253850761,-289.76728,0.00027554,7]
[364820492,1749253850773,-151.0,0.00027554,7]
[364820493,1749253850784,-151.0,0.00027554,7]
[364820494,1749253850793,-151.0,0.00027554,7]
[364820495,1749253850804,-990.388362,0.00027554,7]
[364820496,1749253850813,-990.388362,0.00027554,7]
[364820497,1749253850823,-151.0,0.00027554,7]
[364820498,1749253850832,-459.07470534,0.00027555,17]
[364820499,1749253850841,-449.261659,0.0002756,7]
[364820500,1749253850850,-449.261659,0.0002756,7]
[364820501,1749253850860,-151.0,0.0002756,7]
[364820502,1749253850869,-340.181524,0.0002756,7]
[364820503,1749253850878,-340.181524,0.0002756,7]
[364820504,1749253850887,-151.0,0.0002756,7]
[364820505,1749253850896,-151.0,0.0002756,7]
[364820506,1749253850908,-895.42,0.0002756,5]
[364820507,1749253850920,-895.42,0.0002756,5]
[364820508,1749253850931,-11379.97,0.0002756,5]
[364820509,1749253850940,-11379.97,0.0002756,5]
[364820510,1749253850951,-668.48,0.0002756,5]
[364820511,1749253850961,-668.48,0.0002756,5]
[364820512,1749253850971,-151.0,0.00027561,7]
[364820513,1749253850981,-151.0,0.00027561,7]
[364820514,1749253850991,-151.0,0.00027561,7]
[364820515,1749253851002,-457.36157111,0.00027561,5]
[364820516,1749253851012,-151.0,0.00027561,7]
[364820517,1749253851023,-693.261509,0.00027561,7]
[364820518,1749253851032,-693.261509,0.00027561,7]
[364820519,1749253851042,-480.0,0.00027561,5]
[364820520,1749253851052,-480.0,0.00027561,5]
[364820521,1749253851062,-480.0,0.00027561,5]
[364820522,1749253851073,-500.01360903,0.00027561,5]
[364820523,1749253851088,-1484.310332,0.00027561,7]
[364820524,1749253851097,-1484.310332,0.00027561,7]
[364820525,1749253851109,-480.0,0.00027561,5]
[364820526,1749253851119,-480.0,0.00027561,5]
[364820527,1749253851129,-480.0,0.00027561,5]
[364820528,1749253851139,-564.72569507,0.00027561,5]
[364820529,1749253851150,-480.0,0.00027561,5]
[364820530,1749253851162,-480.0,0.00027561,5]
[364820531,1749253851172,-600.0,0.00027561,30]
[364820532,1749253851182,-480.0,0.00027561,5]
[364820533,1749253851192,-480.0,0.00027561,5]
[364820534,1749253851204,-480.0,0.00027561,5]
[364820535,1749253851213,-480.0,0.00027561,5]
[364820536,1749253851223,-480.0,0.00027561,5]
[364820537,1749253851234,-480.0,0.00027561,5]
[364820538,1749253851243,-480.0,0.00027561,5]
[364820539,1749253851253,-406.909102,0.00027561,7]
[364820540,1749253851262,-406.909102,0.00027561,7]
[364820541,1749253851272,-501.9987913,0.00027561,5]
[364820542,1749253851281,-480.0,0.00027561,5]
[364820543,1749253851290,-480.0,0.00027561,5]
[364820544,1749253851300,-499.27085598,0.00027561,5]
[364820545,1749253851309,-480.0,0.00027561,5]
[364820546,1749253851319,-480.0,0.00027561,5]
[364820547,1749253851328,-229.189434,0.00027561,7]
[364820548,1749253851338,-480.0,0.00027561,5]
[364820549,1749253851347,-229.189434,0.00027561,7]
[364820550,1749253851358,-480.0,0.00027561,5]
[364820551,1749253851375,-181.337287,0.00027561,7]
[364820552,1749253851384,-480.0,0.00027561,5]
[364820553,1749253851394,-480.0,0.00027561,5]
[364820554,1749253851404,-181.337287,0.00027561,7]
[364820555,1749253851413,-480.0,0.00027561,5]
[364820556,1749253851423,-480.0,0.00027561,5]
[364820557,1749253851432,-480.0,0.00027561,5]
[364820558,1749253851442,-796.01,0.00027561,5]
[364820559,1749253851451,-480.0,0.00027561,5]
[364820560,1749253851461,-480.0,0.00027561,5]
[364820561,1749253851470,-480.0,0.00027561,5]
[364820562,1749253851480,-409.09319824,0.00027561,5]
[364820563,1749253851489,-480.0,0.00027561,5]
[364820564,1749253851499,-172.68109947,0.00027561,5]
[364820565,1749253851508,-207.46247466,0.00027561,5]
[364820566,1749253851517,-480.0,0.00027561,5]
[364820567,1749253851527,-480.0,0.00027561,5]
[364820568,1749253851537,-480.0,0.00027561,5]
[364820569,1749253851546,-480.0,0.00027561,5]
[364820570,1749253851555,-480.0,0.00027561,5]
[364820571,1749253851565,-197.05010142,0.00027561,5]
[364820572,1749253851574,-480.0,0.00027561,5]
[364820573,1749253851583,-386.54452976,0.00027561,5]
[364820574,1749253851593,-480.0,0.00027561,5]
[364820575,1749253851601,-480.0,0.00027561,5]
[364820576,1749253851610,-480.0,0.00027561,5]
[364820577,1749253851619,-151.0,0.00027561,7]
[364820578,1749253851629,-480.0,0.00027561,5]
[364820579,1749253851639,-480.0,0.00027561,5]
[364820580,1749253851649,-497.04,0.00027561,5]
[364820581,1749253851659,-191.80958,0.00027561,7]
[364820582,1749253851669,-480.0,0.00027561,5]
[364820583,1749253851679,-480.0,0.00027561,5]
[364820584,1749253851689,-480.0,0.00027561,5]
[364820585,1749253851698,-654.83,0.00027561,5]
[364820586,1749253851708,-480.0,0.00027561,5]
[364820587,1749253851718,-480.0,0.00027561,5]
[364820588,1749253851727,-480.0,0.00027561,5]
[364820589,1749253851736,-480.0,0.00027561,5]
[364820590,1749253851746,-500.0,0.00027561,5]
[364820591,1749253851755,-480.0,0.00027561,5]
[364820592,1749253851765,-480.0,0.00027561,5]
[364820593,1749253851776,-480.0,0.00027561,5]
[364820594,1749253851787,-480.0,0.00027561,5]
[364820595,1749253851799,-480.0,0.00027561,5]
[364820596,1749253851808,-515.61,0.00027561,5]
[364820597,1749253851819,-480.0,0.00027561,5]
[364820598,1749253851828,-480.0,0.00027561,5]
[364820599,1749253851839,-439.841746,0.00027561,7]
[364820600,1749253851848,-480.0,0.00027561,5]
[364820601,1749253851857,-439.841746,0.00027561,7]
[364820602,1749253851866,-480.0,0.00027561,5]
[364820603,1749253851876,-480.0,0.00027561,5]
[364820604,1749253851886,-1558.59,0.00027561,5]
[364820605,1749253851895,-480.0,0.00027561,5]
[364820606,1749253851904,-480.0,0.00027561,5]
[364820607,1749253851917,-480.0,0.00027561,5]
[364820608,1749253851927,-480.0,0.00027561,5]
[364820609,1749253851936,-151.0,0.00027561,7]
[364820610,1749253851946,-480.0,0.00027561,5]
[364820611,1749253851957,-609.30924,0.00027561,7]
[364820612,1749253851967,-151.0,0.00027561,7]
[364820613,1749253851977,-609.30924,0.00027561,7]
[364820614,1749253851987,-480.0,0.00027561,5]
[364820615,1749253851998,-480.0,0.00027561,2]
[364820616,1749253852009,-705.08,0.00027561,5]
[364820617,1749253852019,-328.43477867,0.00027561,5]
[364820618,1749253852029,-151.0,0.00027561,7]
[364820619,1749253852039,-480.0,0.00027561,5]
[364820620,1749253852049,-480.0,0.00027561,5]
[364820621,1749253852059,-480.0,0.00027561,5]
[364820622,1749253852069,-151.0,0.00027561,7]
[364820623,1749253852079,-480.0,0.00027561,5]
[364820624,1749253852088,-480.0,0.00027561,5]
[364820625,1749253852099,-480.0,0.00027561,5]
[364820626,1749253852109,-480.0,0.00027561,5]
[364820627,1749253852118,-201.32107364,0.00027561,5]
[364820628,1749253852128,-524.7,0.00027561,5]
[364820629,1749253852218,-510.46,0.00027561,5]
[364820630,1749253852228,-480.0,0.00027561,5]
[364820631,1749253852238,-480.0,0.00027561,5]
[364820632,1749253852247,-480.0,0.00027561,5]
[364820633,1749253852256,-10000.0,0.00027561,7]
[364820634,1749253852266,-480.0,0.00027561,5]
[364820635,1749253852275,-752.03,0.00027561,5]
[364820636,1749253852285,-480.0,0.00027561,5]
[364820637,1749253852295,-480.0,0.00027561,5]
[364820638,1749253852304,-10000.0,0.00027561,7]
[364820639,1749253852315,-480.0,0.00027561,5]
[364820640,1749253852330,-480.0,0.00027561,5]
[364820641,1749253852339,-480.0,0.00027561,5]
[364820642,1749253852348,-480.0,0.00027561,5]
[364820643,1749253852358,-827.93,0.00027561,5]
[364820644,1749253852367,-10000.0,0.00027561,7]
[364820645,1749253852376,-485.65,0.00027561,5]
[364820646,1749253852385,-480.0,0.00027561,5]
[364820647,1749253852394,-480.0,0.00027561,5]
[364820648,1749253852403,-882.77,0.00027561,5]
[364820649,1749253852412,-480.0,0.00027561,5]
[364820650,1749253852422,-688.59,0.00027561,5]
[364820651,1749253852431,-480.0,0.00027561,5]
[364820652,1749253852439,-480.0,0.00027561,5]
[364820653,1749253852448,-480.0,0.00027561,5]
[364820654,1749253852458,-480.0,0.00027561,5]
[364820655,1749253852469,-609.88,0.00027561,5]
[364820656,1749253852479,-480.0,0.00027561,5]
[364820657,1749253852488,-1103.24,0.00027561,5]
[364820658,1749253852497,-480.0,0.00027561,5]
[364820659,1749253852507,-449.261659,0.00027561,7]
[364820660,1749253852516,-480.0,0.00027561,5]
[364820661,1749253852527,-480.0,0.00027561,5]
[364820662,1749253852537,-480.0,0.00027561,5]
[364820663,1749253852546,-480.0,0.00027561,5]
[364820664,1749253852557,-778.01,0.00027561,5]
[364820665,1749253852567,-480.0,0.00027561,5]
[364820666,1749253852576,-480.0,0.00027561,5]
[364820667,1749253852586,-449.261659,0.00027561,7]
[364820668,1749253852596,-480.0,0.00027561,5]
[364820669,1749253852605,-480.0,0.00027561,5]
[364820670,1749253852614,-151.0,0.00027561,7]
[364820671,1749253852623,-151.0,0.00027561,7]
[364820672,1749253852633,-480.0,0.00027561,5]
[364820673,1749253852642,-480.0,0.00027561,5]
[364820674,1749253852652,-480.0,0.00027561,5]
[364820675,1749253852662,-480.0,0.00027561,5]
[364820676,1749253852671,-480.0,0.00027561,5]
[364820677,1749253852680,-1224.121381,0.00027561,7]
[364820678,1749253852690,-700.93,0.00027561,5]
[364820679,1749253852699,-545.77,0.00027561,5]
[364820680,1749253852708,-480.0,0.00027561,5]
[364820681,1749253852718,-594.24,0.00027561,5]
[364820682,1749253852727,-413.68007399,0.00027561,5]
[364820683,1749253852736,-1224.121381,0.00027561,7]
[364820684,1749253852745,-552.44,0.00027561,5]
[364820685,1749253852755,-946.02,0.00027561,5]
[364820686,1749253852764,-568.01136989,0.00027561,5]
[364820687,1749253852774,-480.0,0.00027561,5]
[364820688,1749253852783,-480.0,0.00027561,5]
[364820689,1749253852793,-754.55,0.00027561,5]
[364820690,1749253852802,-480.0,0.00027561,5]
[364820691,1749253852812,-300.0,0.00027561,5]
[364820692,1749253852821,-867.32,0.00027561,5]
[364820693,1749253852831,-197.84165642,0.00027561,5]
[364820694,1749253852840,-480.0,0.00027561,5]
[364820695,1749253852852,-480.0,0.00027561,5]
[364820696,1749253852861,-480.0,0.00027561,5]
[364820697,1749253852870,-480.0,0.00027561,5]
[364820698,1749253852879,-480.0,0.00027561,5]
[364820699,1749253852889,-480.0,0.00027561,5]
[364820700,1749253852898,-1975.504037,0.00027561,5]
[364820701,1749253852907,-480.0,0.00027561,5]
[364820702,1749253852920,-480.0,0.00027561,5]
[364820703,1749253852929,-480.0,0.00027561,5]
[364820704,1749253852938,-480.0,0.00027561,5]
[364820705,1749253852947,-480.0,0.00027561,5]
[364820706,1749253852956,-480.0,0.00027561,5]
[364820707,1749253852966,-480.0,0.00027561,5]
[364820708,1749253852975,-480.0,0.00027561,5]
[364820709,1749253852984,-880.45,0.00027561,5]
[364820710,1749253852993,-480.0,0.00027561,5]
[364820711,1749253853003,-480.0,0.00027561,5]
[364820712,1749253853013,-480.0,0.00027561,5]
[364820713,1749253853023,-480.0,0.00027561,5]
[364820714,1749253853034,-601.83,0.00027561,5]
[364820715,1749253853043,-151.0,0.00027561,7]
[364820716,1749253853052,-480.0,0.00027561,5]
[364820717,1749253853061,-151.0,0.00027561,7]
[364820718,1749253853070,-1047.85,0.00027561,5]
[364820719,1749253853080,-511.02,0.00027561,5]
[364820720,1749253853088,-2062.644716,0.00027561,5]
[364820721,1749253853097,-480.0,0.00027561,5]
[364820722,1749253853106,-480.0,0.00027561,5]
[364820723,1749253853115,-480.0,0.00027561,5]
[364820724,1749253853125,-480.0,0.00027561,5]
[364820725,1749253853134,-604.8,0.00027561,5]
[364820726,1749253853143,-480.0,0.00027561,5]
[364820727,1749253853153,-480.0,0.00027561,5]
[364820728,1749253853163,-480.0,0.00027561,5]
[364820729,1749253853172,-647.68,0.00027561,5]
[364820730,1749253853181,-340.181524,0.00027561,7]
[364820731,1749253853190,-1037.91,0.00027561,5]
[364820732,1749253853199,-151.0,0.00027561,7]
[364820733,1749253853209,-480.0,0.00027561,5]
[364820734,1749253853219,-480.0,0.00027561,5]
[364820735,1749253853229,-340.181524,0.00027561,7]
[364820736,1749253853238,-577.57778148,0.00027561,5]
[364820737,1749253853247,-621.61,0.00027561,5]
[364820738,1749253853257,-508.83,0.00027561,5]
[364820739,1749253853266,-151.0,0.00027561,7]
[364820740,1749253853275,-480.0,0.00027561,5]
[364820741,1749253853285,-932.57,0.00027561,5]
[364820742,1749253853295,-151.0,0.00027561,7]
[364820743,1749253853304,-480.0,0.00027561,5]
[364820744,1749253853314,-480.0,0.00027561,5]
[364820745,1749253853323,-628.82,0.00027561,5]
[364820746,1749253853333,-1213.99,0.00027561,5]
[364820747,1749253853342,-480.0,0.00027561,5]
[364820748,1749253853352,-692.61,0.00027561,5]
[364820749,1749253853361,-480.0,0.00027561,5]
[364820750,1749253853371,-480.0,0.00027561,5]
[364820751,1749253853381,-480.0,0.00027561,5]
[364820752,1749253853391,-558.11,0.00027561,5]
[364820753,1749253853400,-480.0,0.00027561,5]
[364820754,1749253853409,-480.0,0.00027561,5]
[364820755,1749253853418,-721.44,0.00027561,5]
[364820756,1749253853428,-480.0,0.00027561,5]
[364820757,1749253853437,-480.0,0.00027561,5]
[364820758,1749253853447,-480.0,0.00027561,5]
[364820759,1749253853456,-151.0,0.00027561,7]
[364820760,1749253853465,-151.0,0.00027561,7]
[364820761,1749253853475,-480.0,0.00027561,5]
[364820762,1749253853484,-480.0,0.00027561,5]
[364820763,1749253853493,-151.0,0.00027561,7]
[364820764,1749253853503,-1482.55,0.00027561,5]
[364820765,1749253853513,-151.0,0.00027561,7]
[364820766,1749253853522,-480.0,0.00027561,5]
[364820767,1749253853531,-480.0,0.00027561,5]
[364820768,1749253853540,-480.0,0.00027561,5]
[364820769,1749253853549,-590.72,0.00027561,5]
[364820770,1749253853558,-151.0,0.00027561,7]
[364820771,1749253853567,-151.0,0.00027561,7]
[364820772,1749253853577,-1227.78,0.00027561,5]
[364820773,1749253853586,-151.0,0.00027561,7]
[364820774,1749253853595,-151.0,0.00027561,7]
[364820775,1749253853605,-480.0,0.00027561,5]
[364820776,1749253853614,-151.0,0.00027561,7]
[364820777,1749253853623,-480.0,0.00027561,5]
[364820778,1749253853633,-151.0,0.00027561,7]
[364820779,1749253853642,-480.0,0.00027561,5]
[364820780,1749253853651,-151.0,0.00027561,7]
[364820781,1749253853660,-480.0,0.00027561,5]
[364820782,1749253853669,-756.22,0.00027561,5]
[364820783,1749253853679,-480.0,0.00027561,5]
[364820784,1749253853688,-151.0,0.00027561,7]
[364820785,1749253853698,-480.0,0.00027561,5]
[364820786,1749253853707,-480.0,0.00027561,5]
[364820787,1749253853717,-151.0,0.00027561,7]
[364820788,1749253853726,-704.91,0.00027561,5]
[364820789,1749253853736,-480.0,0.00027561,5]
[364820790,1749253853745,-151.0,0.00027561,7]
[364820791,1749253853755,-719.97,0.00027561,5]
[364820792,1749253853765,-151.0,0.00027561,7]
[364820793,1749253853775,-480.0,0.00027561,5]
[364820794,1749253853786,-1000.0,0.00027561,5]
[364820795,1749253853797,-480.0,0.00027561,5]
[364820796,1749253853809,-491.4751328,0.00027561,5]
[364820797,1749253853818,-734.61,0.00027561,5]
[364820798,1749253853827,-151.0,0.00027561,7]
[364820799,1749253853839,-480.0,0.00027561,5]
[364820800,1749253853848,-480.0,0.00027561,5]
[364820801,1749253853859,-746.85,0.00027561,5]
[364820802,1749253853870,-480.0,0.00027561,5]
[364820803,1749253853880,-480.0,0.00027561,5]
[364820804,1749253853890,-365.51950285,0.00027561,5]
[364820805,1749253853899,-492.64,0.00027561,5]
[364820806,1749253853912,-763.46,0.00027561,5]
[364820807,1749253853923,-228.79945122,0.00027561,5]
[364820808,1749253853933,-480.0,0.00027561,5]
[364820809,1749253853942,-480.0,0.00027561,5]
[364820810,1749253853951,-480.0,0.00027561,5]
[364820811,1749253853962,-480.0,0.00027561,5]
[364820812,1749253853972,-480.0,0.00027561,5]
[364820813,1749253853981,-480.0,0.00027561,5]
[364820814,1749253853991,-480.0,0.00027561,5]
[364820815,1749253854000,-572.93,0.00027561,5]
[364820816,1749253854009,-480.0,0.00027561,5]
[364820817,1749253854019,-495.14,0.00027561,5]
[364820818,1749253854028,-463.24735372,0.00027561,5]
[364820819,1749253854037,-480.0,0.00027561,5]
[364820820,1749253854046,-480.0,0.00027561,5]
[364820821,1749253854055,-500.31,0.00027561,5]
[364820822,1749253854066,-482.15,0.00027561,5]
[364820823,1749253854075,-480.0,0.00027561,5]
[364820824,1749253854084,-990.388362,0.00027561,7]
[364820825,1749253854093,-480.0,0.00027561,5]
[364820826,1749253854103,-494.21545318,0.00027561,5]
[364820827,1749253854112,-990.388362,0.00027561,7]
[364820828,1749253854121,-480.0,0.00027561,5]
[364820829,1749253854133,-480.0,0.00027561,5]
[364820830,1749253854142,-1246.27,0.00027561,5]
[364820831,1749253854151,-480.0,0.00027561,5]
[364820832,1749253854161,-486.08,0.00027561,5]
[364820833,1749253854170,-847.86,0.00027561,5]
[364820834,1749253854180,-480.0,0.00027561,5]
[364820835,1749253854189,-480.0,0.00027561,5]
[364820836,1749253854198,-480.0,0.00027561,5]
[364820837,1749253854207,-1554.95,0.00027561,5]
[364820838,1749253854216,-480.0,0.00027561,5]
[364820839,1749253854225,-480.0,0.00027561,5]
[364820840,1749253854234,-1110.71,0.00027561,5]
[364820841,1749253854243,-480.0,0.00027561,5]
[364820842,1749253854252,-4111.15,0.00027561,5]
[364820843,1749253854261,-931.68,0.00027561,5]
[364820844,1749253854270,-152.209339,0.00027561,7]
[364820845,1749253854281,-872.28,0.00027561,5]
[364820846,1749253854291,-827.66,0.00027561,5]
[364820847,1749253854301,-639.471344,0.00027561,7]
[364820848,1749253854310,-183.91293602,0.00027561,5]
[364820849,1749253854319,-480.0,0.00027561,5]
[364820850,1749253854328,-639.471344,0.00027561,7]
[364820851,1749253854338,-49954.24,0.00027561,5]
[364820852,1749253854347,-5239.27,0.00027561,5]
[364820853,1749253854356,-480.0,0.00027561,5]
[364820854,1749253854366,-480.0,0.00027561,5]
[364820855,1749253854375,-152.014466,0.00027561,7]
[364820856,1749253854384,-1716.72,0.00027561,5]
[364820857,1749253854394,-1187.591915,0.00027561,7]
[364820858,1749253854403,-628.88,0.00027561,5]
[364820859,1749253854412,-2707.77,0.00027561,5]
[364820860,1749253854421,-5293.31,0.00027561,5]
[364820861,1749253854431,-1187.591915,0.00027561,7]
[364820862,1749253854440,-480.0,0.00027561,5]
[364820863,1749253854449,-480.0,0.00027561,5]
[364820864,1749253854459,-480.0,0.00027561,5]
[364820865,1749253854469,-480.0,0.00027561,5]
[364820866,1749253854479,-480.0,0.00027561,5]
[364820867,1749253854489,-611.77,0.00027561,5]
[364820868,1749253854498,-480.0,0.00027561,5]
[364820869,1749253854508,-480.0,0.00027561,5]
[364820870,1749253854518,-480.0,0.00027561,5]
[364820871,1749253854527,-6549.81,0.00027561,5]
[364820872,1749253854537,-480.0,0.00027561,5]
[364820873,1749253854548,-8543.23,0.00027561,5]
[364820874,1749253854557,-516.55,0.00027561,5]
[364820875,1749253854567,-480.0,0.00027561,5]
[364820876,1749253854578,-480.0,0.00027561,5]
[364820877,1749253854587,-1683.181173,0.00027561,7]
[364820878,1749253854599,-1254.31,0.00027561,5]
[364820879,1749253854609,-840.09,0.00027561,5]
[364820880,1749253854619,-480.0,0.00027561,5]
[364820881,1749253854630,-503.08,0.00027561,5]
[364820882,1749253854640,-151.0,0.00027561,7]
[364820883,1749253854649,-1577.82,0.00027561,5]
[364820884,1749253854659,-480.0,0.00027561,5]
[364820885,1749253854669,-2032.64,0.00027561,5]
[364820886,1749253854679,-1683.181173,0.00027561,7]
[364820887,1749253854688,-1000.0,0.00027561,5]
[364820888,1749253854699,-480.0,0.00027561,5]
[364820889,1749253854709,-480.0,0.00027561,5]
[364820890,1749253854720,-1000.0,0.00027561,2]
[364820891,1749253854729,-1353.55,0.00027561,5]
[364820892,1749253854739,-480.0,0.00027561,5]
[364820893,1749253854748,-1404.53,0.00027561,5]
[364820894,1749253854757,-1058.09,0.00027561,5]
[364820895,1749253854767,-1007.75,0.00027561,5]
[364820896,1749253854778,-151.0,0.00027561,7]
[364820897,1749253854789,-586.87,0.00027561,5]
[364820898,1749253854800,-626.19,0.00027561,5]
[364820899,1749253854810,-480.0,0.00027561,5]
[364820900,1749253854819,-976.7,0.00027561,5]
[364820901,1749253854829,-1555.64,0.00027561,5]
[364820902,1749253854840,-628.32,0.00027561,5]
[364820903,1749253854850,-480.0,0.00027561,5]
[364820904,1749253854860,-2317.1,0.00027561,5]
[364820905,1749253854869,-480.0,0.00027561,5]
[364820906,1749253854879,-1650.55,0.00027561,5]
[364820907,1749253854890,-1108.41,0.00027561,5]
[364820908,1749253854899,-151.0,0.00027561,7]
[364820909,1749253854910,-2620.24,0.00027561,5]
[364820910,1749253854923,-1059.22,0.00027561,5]
[364820911,1749253854933,-480.0,0.00027561,5]
[364820912,1749253854943,-167.342665,0.00027561,7]
[364820913,1749253854954,-480.0,0.00027561,5]
[364820914,1749253854964,-167.342665,0.00027561,7]
[364820915,1749253854974,-521.26,0.00027561,5]
[364820916,1749253854984,-1559.11,0.00027561,5]
[364820917,1749253854996,-1274.13,0.00027561,5]
[364820918,1749253855006,-480.0,0.00027561,5]
[364820919,1749253855016,-1057.81,0.00027561,5]
[364820920,1749253855026,-167.342665,0.00027561,7]
[364820921,1749253855037,-480.0,0.00027561,5]
[364820922,1749253855047,-480.0,0.00027561,5]
[364820923,1749253855056,-167.342665,0.00027561,7]
[364820924,1749253855067,-2729.58,0.00027561,5]
[364820925,1749253855077,-480.0,0.00027561,5]
[364820926,1749253855090,-9029.07,0.00027561,5]
[364820927,1749253855100,-1808.16,0.00027561,5]
[364820928,1749253855109,-2185.72,0.00027561,5]
[364820929,1749253855120,-480.0,0.00027561,5]
[364820930,1749253855130,-1148.13,0.00027561,5]
[364820931,1749253855140,-480.0,0.00027561,5]
[364820932,1749253855150,-671.08,0.00027561,5]
[364820933,1749253855160,-2799.13,0.00027561,5]
[364820934,1749253855169,-565.58,0.00027561,5]
[364820935,1749253855178,-480.0,0.00027561,5]
[364820936,1749253855188,-5004.26,0.00027561,5]
[364820937,1749253855198,-1066.11,0.00027561,5]
[364820938,1749253855211,-480.0,0.00027561,5]
[364820939,1749253855220,-480.0,0.00027561,5]
[364820940,1749253855231,-1287.45,0.00027561,5]
[364820941,1749253855241,-753.7,0.00027561,5]
[364820942,1749253855251,-480.0,0.00027561,5]
[364820943,1749253855261,-480.0,0.00027561,5]
[364820944,1749253855270,-1076.74,0.00027561,5]
[364820945,1749253855279,-480.0,0.00027561,5]
[364820946,1749253855289,-904.58,0.00027561,5]
[364820947,1749253855298,-1763.61,0.00027561,5]
[364820948,1749253855308,-830.91,0.00027561,5]
[364820949,1749253855317,-480.0,0.00027561,5]
[364820950,1749253855327,-1523.18,0.00027561,5]
[364820951,1749253855336,-480.0,0.00027561,5]
[364820952,1749253855346,-480.0,0.00027561,5]
[364820953,1749253855355,-480.0,0.00027561,5]
[364820954,1749253855364,-480.0,0.00027561,5]
[364820955,1749253855373,-480.0,0.00027561,5]
[364820956,1749253855383,-480.0,0.00027561,5]
[364820957,1749253855394,-480.0,0.00027561,5]